{"text_format":"1","workbook":"xlsx","n_sheets":2,"sheets":["自分史年表","西暦・和暦対象表"],"not_rendered":{"charts":0,"images":0,"macros":1,"external_links":0,"defined_names":1,"comments":0,"pivot_tables":0},"unopened":[],"bounds":{"document_bytes":16777216,"sheet_cells":100000,"rows_first":2000,"rows_last":500,"rows_between":2000,"halvings":0,"cell_chars":16384,"cell_head_chars":4096},"cells_cut":0,"cells_raw":0,"read":"whole","date_system":"1900"}

{"sheet":"自分史年表","index":0,"n_rows":142,"n_cols":17,"rows_kept":142,"cut":false,"hidden":false,"merged":[[0,2,0,4]]}
[null,null,"〇〇〇〇の自分史 年表"]
[]
["西・和暦","年齢","社会の出来事","学習・仕事","心に残っていること","写真","西・和暦","年齢","プライベート","家族",null,"和暦","西暦","干支","日本の動向","世界の動向","流行・キーワード"]
["1946年　昭和21年",0,"日本国憲法が公布",null,null,null,null,null,null,null,null,"明治35年","1902年","寅（とら）","日英同盟が締結 / 戦艦三笠竣工 / 電柱広告開始","ベリア鉄道がほぼ全通 / ベルリン地下鉄が開業 / 清国がロシア帝国と満洲還付条約に調印","ひさし髪 / ガラス製おはじき / 紙めんこ /ブリキ製軍人呼子笛 / 水出し福助 / 正露丸（征露丸）"]
[null,null,null,null,null,null,null,null,null,null,null,"明治36年","1903年","卯（う）","浅草に日本初の常設映画館・電気館が開館","ライト兄弟が有人動力飛行に成功","海老茶袴 / 庇髪 / 編み上げブーツ / ハジキ遊び"]
[null,null,null,null,null,null,null,null,null,null,null,"明治37年","1904年","辰（たつ）","日露戦争","第一次日韓協約調印。韓国の財政・外交が日本の監督下に","ヘアスタイル・二百三高地髷 / 室内遊び・家族合わせ / 千人針"]
[null,null,null,null,null,null,null,null,null,null,null,"明治38年","1905年","巳（み）","日比谷焼打事件","ロシア第一革命","ラッパ節 / 玩具・ポペン / 吾輩は猫である  / 仁丹（赤大粒）"]
[null,null,null,null,null,null,null,null,null,null,null,"明治39年","1906年","午（うま）","鉄道国有法施行","南満洲鉄道（満鉄）設立","いちれつ談判破裂して / ハーモニカ / ゴールデンバッド"]
[null,null,null,null,null,null,null,null,null,null,null,"明治40年","1907年","未（ひつじ）","小学校令改正、義務教育が6年間となる","ロシア皇帝ニコライ2世が満州からの撤兵を宣言","けん玉 / ブリキ笛 / 舶来活動写真機 / デカンショ節 / 出歯亀事件"]
[null,null,null,null,null,null,null,null,null,null,null,"明治41年","1908年","申（さる）","日本からの移民制限・日米紳士協定締結","フォード社が「モデルT」を発売","卓上ベースボール / ディアボロ / サクマ式ドロップス / ハイカラ節"]
[null,null,null,null,null,null,null,null,null,null,null,"明治42年","1909年","酉（とり）","伊藤博文暗殺事件","米国探検家ロバート・ピアリーが北極点に到達","玩具・マグネ / 野中の薔薇"]
[null,null,null,null,null,null,null,null,null,null,null,"明治43年","1910年","戌（いぬ）","秦佐八郎が梅毒の治療薬サルバルサンを発見","史上初の艦上からの飛行機の離陸に成功","鋳物製ベーゴマ / 水ピストル / 新衣裳・創刊100号 / レコード"]
[null,null,null,null,null,null,null,null,null,null,null,"明治44年","1911年","亥（い）","帝国劇場が開館","インドで、世界初の飛行機による郵便物の運送","電気花火玩具 / 肝油ドロップ"]
[null,null,null,null,null,null,null,null,null,null,null,"明治45年 ／ 大正元年","1912年","子（ね）","明治天皇が崩御","豪華客船「タイタニック号」沈没","ジゴマごっこ / セルロイド玩具 / ひさし髪 / セーラー服  / 挿絵画家"]
[null,null,null,null,null,null,null,null,null,null,null,"大正2年","1913年","丑（うし）","孫文が日本に2回目の亡命","第1次世界大戦開戦","城ヶ島の雨 / 冬景色"]
[null,null,null,null,null,null,null,null,null,null,null,"大正3年","1914年","寅（とら）","日本陸軍が山東半島へ上陸 / 東京駅開業","独軍がブリュッセルを占領","カチューシャの唄 / 戦争ごっこ"]
[null,null,null,null,null,null,null,null,null,null,null,"大正4年","1915年","卯（う）","京都御所で大正天皇の即位礼","青年トルコ革命","ゴンドラの唄・いのち短し、恋せよ少女 / 玩具・フレーボーイ / 亀の子たわし"]
[null,null,null,null,null,null,null,null,null,null,null,"大正5年","1916年","辰（たつ）","第四次日露協約調印","鄭家屯事件、中国・奉天省で日中両軍が衝突","浜辺の歌 /電車の歌"]
[null,null,null,null,null,null,null,null,null,null,null,"大正6年","1917年","巳（み）","日本海軍の駆逐艦「榊」が豪軍潜水艦に雷撃される","ロシア革命","キューピー人形 / さすらいの唄 / コロッケの唄"]
[null,null,null,null,null,null,null,null,null,null,null,"大正7年","1918年","午（うま）","日本各地で米騒動が発生","第1次世界大戦終戦 / スペイン風邪が大流行","東京節（パイノパイノパイ） / スペイン風邪 / 忍術ごっこ"]
[null,null,null,null,null,null,null,null,null,null,null,"大正8年","1919年","未（ひつじ）","地方鉄道法公布","ハンガリー・ソビエト共和国が建国し同年崩壊","カルピス / 靴が鳴る"]
[null,null,null,null,null,null,null,null,null,null,null,"大正9年","1920年","申（さる）","普選運動の高まり /  明治神宮創建 /  第1回箱根駅伝開催","仏国で第1回凱旋門賞開催","浜千鳥 / コレラ流行 / 初の国勢調査実施"]
[null,null,null,null,null,null,null,null,null,null,null,"大正10年","1921年","酉（とり）","三菱電機が設立 / 尺貫法からメートル法へ統一","中華民国（北京政府）と独国が国交回復","メートル法  / どんぐりころころ / 青い眼の人形 / 赤い靴"]
[null,null,null,null,null,null,null,null,null,null,null,"大正11年","1922年","戌（いぬ）","日本共産党結成 / 「サンデー毎日」「週刊朝日」が創刊","エジプトが英国より独立 / ハンガリー国連加盟","聞け万国の労働者 / グリコ / 赤玉ポートワイン"]
[null,null,null,null,null,null,null,null,null,null,null,"大正12年","1923年","亥（い）","関東大震災","国際刑事警察機構（インターポール）創設","百連発短銃 / 子ども漫画カルタ / 正チヤンの冒険"]
[null,null,null,null,null,null,null,null,null,null,null,"大正13年","1924年","子（ね）","阪神甲子園球場が起工","モンゴル人民共和国が建国","チンチンピアノ / 文化 / デモクラシー"]
[null,null,null,null,null,null,null,null,null,null,null,"大正14年","1925年","丑（うし）","普通選挙法が成立","ツタンカーメン王の王墓を発掘 / 日ソ基本条約締結 ","モダンガール / モダンボーイ "]
[null,null,null,null,null,null,null,null,null,null,null,"大正15年 ／ 昭和元年","1926年","寅（とら）","本州と北海道の市外通話開始","童話『クマのプーさん』発売","おかっぱ（断髪） / こども博覧会 / 文化住宅 / 福本イズム / 赤"]
[null,null,null,null,null,null,null,null,null,null,null,"昭和2年","1927年","卯（う）","除夜の鐘（寛永寺）が初の中継放送","南京国民政府（蔣介石政権）が樹立 / 大西洋無着陸飛行に初成功","人形大使 / 赤とんぼ / 何が彼女をそうさせたか / チャールストン"]
[null,null,null,null,null,null,null,null,null,null,null,"昭和3年","1928年","辰（たつ）","アムステルダムオリンピックの競泳男子200m平泳ぎで鶴田義行が、陸上三段跳びで織田幹雄が金メダル","パリ不戦条約（ケロッグ・ブリアン協定）締結","蓄音機 / 赤線入り棒状体温計 / アラビヤの唄 / 私の青空 / 出船・でふね "]
[null,null,null,null,null,null,null,null,null,null,null,"昭和4年","1929年","巳（み）","世界大恐慌が発生","世界大恐慌が発生","蒲田行進曲 / 大学は出だけれど / ステッキガール"]
[null,null,null,null,null,null,null,null,null,null,null,"昭和5年","1930年","午（うま）","日本がロンドン海軍軍縮条約に批准","第1回サッカーワールドカップがウルグアイで開催","ルンペン / 銀ブラ / エロ・クロ・ナンセンス / 祇園小唄 / すみれの花咲く頃"]
[null,null,null,null,null,null,null,null,null,null,null,"昭和6年","1931年","未（ひつじ）","羽田飛行場（現東京国際空港）が開港","満州事変 /  アメリカ合衆国の国歌として「星条旗」が制定","紙芝居・黄金バット / 丘を越えて / こいのぼり"]
[null,null,null,null,null,null,null,null,null,null,null,"昭和7年","1932年","申（さる）","桜田門事件","リットン報告書が公開","話せばわかる / 影を慕いて / 満州行進曲"]
[null,null,null,null,null,null,null,null,null,null,null,"昭和8年","1933年","酉（とり）","山形市で気温摂氏40.8度の最高気温記録","ヒトラー率いるナチス台頭","のらくろ / 42対１ / 男装の麗人"]
[null,null,null,null,null,null,null,null,null,null,null,"昭和9年","1934年","戌（いぬ）","読売ジャイアンツの前身「大日本東京野球倶楽部」創立","皇帝・溥儀が満州国皇帝に即位","東京音頭 / 山の人気者 / 谷間のともしび"]
[null,null,null,null,null,null,null,null,null,null,null,"昭和10年","1935年","亥（い）","天皇機関説事件","米国でナイロンを開発","パーマネント・ウェーブ / 船頭可愛いや・古関裕而"]
[null,null,null,null,null,null,null,null,null,null,null,"昭和11年","1936年","子（ね）","二・二六事件が発生 / 国会議事堂が落成","小説『風と共に去りぬ』発行 /  「野球殿堂」を開設し、ベーブ・ルースが殿堂入り","東京ラプソディ / うれしいひなまつり / 阪神タイガースの歌（六甲おろし）"]
[null,null,null,null,null,null,null,null,null,null,null,"昭和12年","1937年","丑（うし）","文化勲章制定 / 浅草で国際劇場が開場 / 川端康成の小説『雪国』が発行","盧溝橋事件により日中戦争（支那事変）へ発展","山寺の和尚さん / かわいい魚屋さん / アマポーラ"]
[null,null,null,null,null,null,null,null,null,null,null,"昭和13年","1938年","寅（とら）","日本政府が1940年開催予定の夏期・冬季オリンピックの開催権返上を決定","南アフリカで、絶滅種とされていたシーラカンスの生存確認","雨のブルース / 旅の夜風"]
[null,null,null,null,null,null,null,null,null,null,null,"昭和14年","1939年","卯（う）","第2次世界大戦が勃発","第2次世界大戦が勃発","お猿のかごや / 陶製湯たんぼ / 雪印マーガリン / 赤マント"]
[null,null,null,null,null,null,null,null,null,null,null,"昭和15年","1940年","辰（たつ）","日独伊三国同盟が締結","ドイツ軍がパリを占領 / 英国空中戦（バトル・オブ・ブリテン）","誰か故郷を想はざる / バスに乗りおくれるな / ぜいたくは敵だ"]
[null,null,null,null,null,null,null,null,null,null,null,"昭和16年","1941年","巳（み）","東条英機内閣が成立 / 真珠湾攻撃　太平洋戦争が開戦","バルバロッサ作戦発動で独ソ戦開始","戦陣訓の歌 / 産業戦士 / ABCD対日包囲陣"]
[null,null,null,null,null,null,null,null,null,null,null,"昭和17年","1942年","午（うま）","シンガポール陥落 / ミッドウェー海戦","スターリングラード攻防戦","欲しがりません勝つまでは / 戦時石鹸"]
[null,null,null,null,null,null,null,null,null,null,null,"昭和18年","1943年","未（ひつじ）","学徒出陣 / ガダルカナル島の戦い","ワルシャワ・ゲットー蜂起"," 愛国いろはかるた / 愛国百人一首 / 撃ちてし止まむ / 元帥の仇は増産で"]
[null,null,null,null,null,null,null,null,null,null,null,"昭和19年","1944年","申（さる）","近畿日本鉄道（近鉄）が設立","ノルマンディー上陸作戦 / パリ解放","鬼畜米英 / 一億国民総武装 / 大和一致  / 一億火の玉"]
[null,null,null,null,null,null,null,null,null,null,null,"昭和20年","1945年","酉（とり）","硫黄島の戦い / 広島・長崎に原子爆弾が投下 / 日本敗戦","米英ソ首脳が会談（ヤルタ会談）","玩具・ブリキ製ジープ / リンゴの唄 / オール読物 / 文藝春秋"]
[null,null,null,null,null,null,null,null,null,null,null,"昭和21年","1946年","戌（いぬ）","日本国憲法が公布","コンピュータ「ENIAC」の登場","りんご箱 / チューインガム / ギブ・ミー・チョコレート / 東京の花売り娘 / 中央公論"]
[null,null,null,null,null,null,null,null,null,null,null,"昭和22年","1947年","亥（い）","援助物資で学校給食が開始","イギリス王女エリザベスが結婚 / インドとパキスタンが分離独立","太宰治・斜陽 / 斜陽族 / タケノコ生活 / 荒野の決闘"]
[null,null,null,null,null,null,null,null,null,null,null,"昭和23年","1948年","子（ね）","帝銀事件が発生","マハトマ・ガンジーが暗殺 / 大韓民国が建国","黒澤昭・酔いどれ天使 / 手塚治虫・ロストワールド"]
[null,null,null,null,null,null,null,null,null,null,null,"昭和24年","1949年","丑（うし）","湯川秀樹が日本人初のノーベル賞を受賞","北大西洋条約機構（NATO）が設立 / 中華人民共和国の建国","東京ブギウギ / 三島由紀夫・仮面の告白 / 手塚治虫・メトロポリス"]
[null,null,null,null,null,null,null,null,null,null,null,"昭和25年","1950年","寅（とら）","警察予備隊が発足 / ジェーン台風","朝鮮戦争開戦","チラリズム  / ビニール・レインコート / ブレザージャケット / ネッカチーフ"]
[null,null,null,null,null,null,null,null,null,null,null,"昭和26年","1951年","卯（う）","サンフランシスコ平和条約 / マッカーサーGHQ最高司令官を解任 / 日本航空が設立","イランで「石油国有化法」成立により、英国資本の石油会社 が国有化","第1回ＮＨＫ紅白歌合戦"]
[null,null,null,null,null,null,null,null,null,null,null,"昭和27年","1952年","辰（たつ）","血のメーデー事件 / 白井義男が日本初のボクシング世界王者に","米が人類初の水爆実験","風船ガム / クラッカーボール / 鉄腕アトム / 公衆電話 / 美空ひばり・リンゴ追分"]
[null,null,null,null,null,null,null,null,null,null,null,"昭和28年","1953年","巳（み）","テレビ本放送開始 / 初のスーパーマーケット紀伊国屋開店","人類初のエベレスト登頂に成功","真知子巻き / トニー谷"]
[null,null,null,null,null,null,null,null,null,null,null,"昭和29年","1954年","午（うま）","マリリン・モンロー来日 / 第五福竜丸が水爆実験「死の灰」により被爆 / 自衛隊が創設 /  / 第1回モーターショー","中華人民共和国と英国が国交樹立 / アメリカン・モーターズが創業","ゴジラ / サブリナパンツ / オードリーヘップバーン / ミルク飲み人形"]
[null,null,null,null,null,null,null,null,null,null,null,"昭和30年","1955年","未（ひつじ）","三種の神器（白黒テレビ・冷蔵庫・洗濯機） / 55年体制が成立","ワルシャワ条約機構が設立","ラジコン / マンボスタイル / ビキニスタイル"]
[null,null,null,null,null,null,null,null,null,null,null,"昭和31年","1956年","申（さる）","日ソ共同宣言","ハンガリー動乱 / 第2次中東戦争","太陽族 / シンタロー刈り / ケ・セラ・セラ/ 石原裕次郎・太陽の季節"]
[null,null,null,null,null,null,null,null,null,null,null,"昭和32年","1957年","酉（とり）","日本観測隊が南極大陸に初上陸 / 上野動物園モノレールが開通 /警察110番全国拡大","ソ連が世界初の人工衛星打ち上げ","バドミントン / ホッピング / カリプソ・スタイル"]
[null,null,null,null,null,null,null,null,null,null,null,"昭和33年","1958年","戌（いぬ）","東京タワーが完成 / 長嶋茂雄が巨人でプロ野球デビュー ","米国初の人工衛星「エクスプローラー1号」打ち上げ","ロカビリー / フラフープ /缶コーヒー / 即席チキンラーメン / セシルカット / 野球盤"]
[null,null,null,null,null,null,null,null,null,null,null,"昭和34年","1959年","亥（い）","明仁皇太子、美智子さま御成婚 / 伊勢湾台風","キューバ革命 / 米国50番目の州・ハワイ州誕生","カミナリ族 / 歌声喫茶 / 月光仮面 / 週刊少年サンデー / 週刊少年マガジン"]
[null,null,null,null,null,null,null,null,null,null,null,"昭和35年","1960年","子（ね）","新日米安保条約調印 / 60年安保闘争","ケネディが米大統領選挙で勝利","ヒッピー族 / 六本木族 / ダッコちゃん / カラーテレビ / ジャイアント馬場 / アントニオ猪木 / ツイッギーカット / キスカール"]
[null,null,null,null,null,null,null,null,null,null,null,"昭和36年","1961年","丑（うし）","柏戸と大鵬が横綱に昇進","ピッグス湾事件 / ガガーリン、人類初の宇宙飛行に成功 / 「ベルリンの壁」出現","スーダラ節 / アンネ・ナプキン / テープレコーダー / プラレール"]
[null,null,null,null,null,null,null,null,null,null,null,"昭和37年","1962年","寅（とら）","戦後初の国産旅客機「YS-11」が完成 / 首都高速道路1号線が開通","キューバミサイル危機","あたり前田のクラッカー / 着せ替え人形"]
[null,null,null,null,null,null,null,null,null,null,null,"昭和38年","1963年","卯（う）","大鵬、大相撲史上初の6場所連続優勝","ケネディ大統領暗殺事件 / ワシントン大行進","上を向いて歩こう / 鉄腕アトム / 鉄人28号 / レーシングカー"]
[null,null,null,null,null,null,null,null,null,null,null,"昭和39年","1964年","辰（たつ）","東京オリンピックが開催 / 東海道新幹線が開業 / 「みゆき族」が登場","反アパルトヘイト運動家ネルソン・マンデラ氏に国家反逆罪による終身刑判決","みゆき族 / ミロのヴィーナス"]
[null,null,null,null,null,null,null,null,null,null,null,"昭和40年","1965年","巳（み）","いざなぎ景気（高度経済成長時代の好景気） / プロ野球の第1回ドラフト会議開催 / 億ション登場","日韓基本条約調印 / セルマの大行進 / 世界初のドーム球場「アストロドーム」開場","11PM / ジャングル大帝レオ / "]
[null,null,null,null,null,null,null,null,null,null,null,"昭和41年","1966年","午（うま）","全日空羽田沖墜落事故 / ビートルズが初来日 / 笑点","中国で文化大革命","ミニスカート / グループサウンズ / ミリタリールック / オバケのQ太郎"]
[null,null,null,null,null,null,null,null,null,null,null,"昭和42年","1967年","未（ひつじ）","吉田茂元首相国葬 / 人気モデル・ツイッギーが来日","デトロイト黒人暴動","ツイッギー / リカちゃん人形 / ボーリング・ブーム"]
[null,null,null,null,null,null,null,null,null,null,null,"昭和43年","1968年","申（さる）"," 川端康成がノーベル文学賞受賞 /『少年ジャンプ』・『少女コミック』が創刊 / ポケベルのサービス開始","プラハの春 / アラブ石油輸出国機構（OAPEC）結成","人生ゲーム / 週刊少年ジャンプ / スカートめくり"]
[null,null,null,null,null,null,null,null,null,null,null,"昭和44年","1969年","酉（とり）","東大安田講堂事件 / 東名高速道路が全線開通","アポロ11号、月面着陸","フォークギター / サザエさん / ドリフターズ"]
[null,null,null,null,null,null,null,null,null,null,null,"昭和45年","1970年","戌（いぬ）","よど号ハイジャック事件 / 大阪万博が開催 / 三島由紀夫が自決","初の東西ドイツ首脳会談","アメリカンクラッカー / ビートルズ解散 / トミカ / ロングヘア"]
[null,null,null,null,null,null,null,null,null,null,null,"昭和46年","1971年","亥（い）","日本マクドナルド1号店が銀座で開業 ","「ドル・ショック」で世界経済が混乱","ボウリング / / 第二次ベビーブーム / カップヌードル"]
[null,null,null,null,null,null,null,null,null,null,null,"昭和47年","1972年","子（ね）","田中首相が訪中　日中国交正常化 / パンダが初来日 / あさま山荘事件","豪華客船「クイーン・エリザベス」が香港で火災・転覆","木枯し紋次郎 / 仮面ライダー玩具"]
[null,null,null,null,null,null,null,null,null,null,null,"昭和48年","1973年","丑（うし）","第1次オイルショック / 巨人が日本シリーズ9連覇達成（V９）","第4次中東戦争","ブルース・リー / オセロゲーム / マジンガーZ玩具"]
[null,null,null,null,null,null,null,null,null,null,null,"昭和49年","1974年","寅（とら）","長嶋茂雄、現役引退 / モナ・リザ展が日本で開催","ウォーターゲート事件 / インドが初の地下核実験、世界6番目の核保有国になる","超能力者ユリ・ゲラー  / エマニエル夫人 / 砂の器 / 華麗なる一族"]
[null,null,null,null,null,null,null,null,null,null,null,"昭和50年","1975年","卯（う）","沖縄国際海洋博覧会が開催","ベトナム戦争終結 / 第1回先進国首脳会議","ベルサイユのばら / ツッパリ / スーパー戦隊 / ハローキティ / サーファーカット"]
[null,null,null,null,null,null,null,null,null,null,null,"昭和51年","1976年","辰（たつ）","ロッキード事件 / 異種格闘技戦「猪木対モハメド・アリ」","コマネチがモントリオール五輪で10点満点","およげ！たいやきくん / 偏差値"]
[null,null,null,null,null,null,null,null,null,null,null,"昭和52年","1977年","巳（み）","巨人の王貞治、世界新記録の756号本塁打達成 ","エルヴィス・プレスリーが死去","ピンクレディー / スーパーカー / アンノン族"]
[null,null,null,null,null,null,null,null,null,null,null,"昭和53年","1978年","午（うま）","池袋に「サンシャイン60」が開館 /  日中平和友好条約、北京で調印式","世界で初めてスパムメールが送信される","ディスコ / 宇宙戦艦ヤマト / タンクトップ"]
[null,null,null,null,null,null,null,null,null,null,null,"昭和54年","1979年","未（ひつじ）","東京サミットが初開催 / インベーダー・ゲームが大流行","マザーテレサ、ノーベル平和賞受賞","インベーダーゲーム / ウォークマン / 口裂け女 / ドラえもん / 金八先生 / ナウい"]
[null,null,null,null,null,null,null,null,null,null,null,"昭和55年","1980年","申（さる）","「竹の子族」登場","イラン・イラク戦争 / ジョン・レノン殺害事件","竹の子族 / ルービックキューブ / テクノカット / 校内暴力 / とらばーゆ / 松田聖子 / 聖子ちゃんカット"]
[null,null,null,null,null,null,null,null,null,null,null,"昭和56年","1981年","酉（とり）"," / ヨハネ・パウロ2世","チャールズ英皇太子婚礼","DCブランド / 「なめネコ」ブーム / キャプテン翼 / スペースシャトル / オレたちひょうきん族"]
[null,null,null,null,null,null,null,null,null,null,null,"昭和57年","1982年","戌（いぬ）","テレホンカード発売開始 / 日航機羽田沖墜落事故 / ホテルニュージャパン火災","英国とアルゼンチンとの間にフォークランド紛争","漫画タッチ / レッグウォーマー / あみん"]
[null,null,null,null,null,null,null,null,null,null,null,"昭和58年","1983年","亥（い）","青木功、日本男子初の米ゴルフツアーで優勝 / 東京ディズニーランド開園","大韓航空機撃墜事件","ドラマ「おしん」 / ファミコン / 北斗の拳 / スチュワーデス物語"]
[null,null,null,null,null,null,null,null,null,null,null,"昭和59年","1984年","子（ね）","グリコ・森永事件 / コアラが初来日","マイケル・ジャクソン、グラミー賞で8冠","エリマキトカゲ / マハラジャ / ドラゴンボール / スケボー / カラムーチョ"]
[null,null,null,null,null,null,null,null,null,null,null,"昭和60年","1985年","丑（うし）","科学万博つくば85が開催 / 日航ジャンボ機墜落事故","プラザ合意","ゴルフ・ブーム / 阪神タイガース21年ぶりのリーグ優勝 / ハンディカムカメラ"]
[null,null,null,null,null,null,null,null,null,null,null,"昭和61年","1986年","寅（とら）","ダイアナ妃が初来日 / ハレ―彗星76年ぶりの大接近","チェルノブイリ原子力発電所事故 / 「チャレンジャー号」爆発事故","財テク・ブーム / 富士フィルム「写ルンです」"]
[null,null,null,null,null,null,null,null,null,null,null,"昭和62年","1987年","卯（う）","バブル景気が始まる / 国鉄分割民営化で「JR」誕生","大韓航空機爆破事件","ビックリマンチョコ / サラダ記念日現象 / モータースポーツ・ブーム"]
[null,null,null,null,null,null,null,null,null,null,null,"昭和63年","1988年","辰（たつ）","青函トンネルが開通 / リクルート事件","パキスタンでイスラム国家初の女性首相誕生","地方博ブーム / ドラゴンクエスト３ / ゲームボーイ /競馬ファン"]
[null,null,null,null,null,null,null,null,null,null,null,"昭和64年 ／ 平成元年","1989年","巳（み）","オウム真理教により坂本堤弁護士一家殺害事件発生","ベルリンの壁」崩壊 / マルタ会談で米ソ冷戦が終結 / 天安門事件","スキー・ブーム / 渋カジ / 消費税 / テトリス / ソバージュヘア"]
[null,null,null,null,null,null,null,null,null,null,null,"平成2年","1990年","午（うま）","明仁天皇・即位の礼 / オグリキャップ、ラストランで優勝","東西ドイツが統一","スーパーファミコン / ランバダダンス"]
[null,null,null,null,null,null,null,null,null,null,null,"平成3年","1991年","未（ひつじ）","長崎県の雲仙普賢岳で火砕流発生","湾岸戦争 / ソビエト連邦崩壊","ジュリアナ / 若貴・ブーム / バブル崩壊"]
[null,null,null,null,null,null,null,null,null,null,null,"平成4年","1992年","申（さる）","チェッカーズ解散 / 貴花田が史上最年少で幕内最高優勝","ロサンゼルス黒人暴動が発生 / ボスニア紛争 / ブラジルで地球サミット開催","ポケベル / きんさん・ぎんさん / セーラームーン"]
[null,null,null,null,null,null,null,null,null,null,null,"平成5年","1993年","酉（とり）","徳仁皇太子、雅子さま御成婚 / プロサッカー「Jリーグ」が開幕 / 細川内閣が発足　55年体制が崩壊","北朝鮮が核拡散防止条約から脱退","コギャル / ダチョウ倶楽部"]
[null,null,null,null,null,null,null,null,null,null,null,"平成6年","1994年","戌（いぬ）","松本サリン事件 / 大江健三郎がノーベル文学賞受賞","アイルトン・セナがF1レース中に事故死 / ネルソン・マンデラ、大統領に就任","小室ファミリー / 家なき子"]
[null,null,null,null,null,null,null,null,null,null,null,"平成7年","1995年","亥（い）","阪神・淡路大震災 / 地下鉄サリン事件が発生 / 「ウィンドウズ95」","ボスニア・ヘルツェゴビナ紛争","スニーカー / 野茂英雄 / ミニ四駆"]
[null,null,null,null,null,null,null,null,null,null,null,"平成8年","1996年","子（ね）","プリクラが大流行 / 羽生善治が将棋タイトル7冠独占 / サッカー五輪日本代表がブラジルに快勝","アフガニスタン紛争 / 第一次チェチェン紛争の休戦成立","ルーズソックス / プリクラ / スターバックス1号店"]
[null,null,null,null,null,null,null,null,null,null,null,"平成9年","1997年","丑（うし）","山一證券が経営破綻 / トヨタ「プリウス」発売","イギリスから中国に香港が返還 / ダイアナ元英皇太子妃が事故死","たまごっち / ポケモン / タイタニック"]
[null,null,null,null,null,null,null,null,null,null,null,"平成10年","1998年","寅（とら）","サッカーW杯に日本代表が初出場 / 長野オリンピックが開催","北朝鮮がミサイル「テポドン」発射","ウインドウズ98 / iMac"]
[null,null,null,null,null,null,null,null,null,null,null,"平成11年","1999年","卯（う）","東海村JCO臨界事故 / ソニーが「AIBO」発売","米コロンバイン高校で銃乱射事件","だんご３兄弟 / ファービー人形 / NTTドコモ「iモード」 / ユニクロ「フリース」 / カリスマ美容師"]
[null,null,null,null,null,null,null,null,null,null,null,"平成12年","2000年","辰（たつ）","九州・沖縄サミットが開催 / シドニー五輪で高橋尚子らが活躍 /  2000円冊発行","世界各地で「ミレニアム」を祝う","プレイステーション２ /   IT革命 / おっはー"]
[null,null,null,null,null,null,null,null,null,null,null,"平成13年","2001年","巳（み）","愛子さま誕生 / 大阪に「USJ」が開園 /  東京ディズニーシー 開園","アメリカ同時多発テロが発生","ハリーポッター /M-1グランプリ"]
[null,null,null,null,null,null,null,null,null,null,null,"平成14年","2002年","午（うま）","FIFAワールドカップ日韓大会が開催 / 北朝鮮拉致被害者が日本に帰国","通貨「ユーロ」の流通開始","ベッカム・ヘアー / アザラシ「タマちゃん」"]
[null,null,null,null,null,null,null,null,null,null,null,"平成15年","2003年","未（ひつじ）","六本木ヒルズがグランドオープン","イラク戦争開戦 / SARSが大流行","オレオレ詐欺 / 鳥インフルエンザ / 千と千尋の神隠し"]
[null,null,null,null,null,null,null,null,null,null,null,"平成16年","2004年","申（さる）","20年ぶりに新紙幣発行 / アテネ五輪で北島康介らが活躍","ムンク美術館からムンクの「叫び」が盗まれる / SNSのFacebookが開設","I Pod mini / 韓流・ブーム"]
[null,null,null,null,null,null,null,null,null,null,null,"平成17年","2005年","酉（とり）","ペイオフ全面解禁 / JR福知山線脱線事故 / ディープインパクト、無敗三冠馬に","スマトラ島沖地震が発生 / 中国で大規模な反日デモ発生","電車男 / セ・パ交流戦 / ちょいワルおやじ"]
[null,null,null,null,null,null,null,null,null,null,null,"平成18年","2006年","戌（いぬ）","悠仁さま誕生 / ライブドア事件 / WBC、王ジャパン初代王者 / トリノオリンピックで荒川静香が金メダル","世界人口が65億人到達 / 第1回ワールド・ベースボール・クラシック（WBC）が開幕","クリスピー・クリーム・ドーナツ / ハンカチ王子"]
[null,null,null,null,null,null,null,null,null,null,null,"平成19年","2007年","亥（い）","新潟県中越沖地震 / 第1回東京マラソン開催 / 石見銀山遺跡、世界遺産に登録","スマトラ島沖地震 / ハッシュタグ「＃」の誕生","交通カード「PASMO」 / ハニカミ王子 / ホームレス中学生"]
[null,null,null,null,null,null,null,null,null,null,null,"平成20年","2008年","子（ね）","北海道洞爺湖サミットが開催 /ドコモがPHSサービス終了/ イチローが日米通算3,000本安打達成","リーマン・ショック / アップル「iPhone 3G」発売","i Phone 3G / H&M / ゆるキャラ / 後部座席シートベルト"]
[null,null,null,null,null,null,null,null,null,null,null,"平成21年","2009年","丑（うし）","中川昭一がG7の記者会見で酩酊状態だったため、猛批判を浴びる / 消費者庁発足","バラク・オバマが米大統領就任 / マイケル・ジャクソンが死去 / ハドソン川の奇跡","ツイッター"]
[null,null,null,null,null,null,null,null,null,null,null,"平成22年","2010年","寅（とら）","日本航空が倒産 / 「はやぶさ」が地球に帰還 /子ども手当の支給開始","ドバイで世界一高い高層ビル「ブルジュ・ハリーファ」が完成 / チリ鉱山で落盤事故","i Pad / K-POP / 坂本龍馬 / 食べるラー油"]
[null,null,null,null,null,null,null,null,null,null,null,"平成23年","2011年","卯（う）","東日本大震災 / FIFA女子W杯でなでしこジャパンが優勝 / 靖国神社・日本大使館で放火事件","英ウィリアム王子が結婚 / 世界人口が70億人突破 / 南スーダン共和国独立","家政婦のミタ / レディガガ"]
[null,null,null,null,null,null,null,null,null,null,null,"平成24年","2012年","辰（たつ）","東京スカイツリー開業 / 東京駅赤レンガ駅舎が開業 / 山中伸弥がノーベル生理学・医学賞受賞","ロシアが世界貿易機関（WTO）加盟 / エジプト・サッカー暴動","iPS細胞 / ロングブレスダイエット"]
[null,null,null,null,null,null,null,null,null,null,null,"平成25年","2013年","巳（み）","富士山が世界文化遺産に / 長嶋茂雄氏と松井秀喜氏に国民栄誉賞","ボストンマラソンで爆弾テロ / NSAの大量監視プログラム「PRISM」が内部告発される","富士山世界文化遺産 / ふなっしー / 半沢直樹"]
[null,null,null,null,null,null,null,null,null,null,null,"平成26年","2014年","午（うま）","ソチ五輪フィギュアで羽生結弦が金メダル / 御嶽山が噴火 / 世界初iPS細胞手術","韓国「セウォル号」沈没事故 / Microsoft Windows XPサポート終了","妖怪ウォッチ / 壁ドン / 消費税８％"]
[null,null,null,null,null,null,null,null,null,null,null,"平成27年","2015年","未（ひつじ）","マイナンバー制度が開始 / ラグビーW杯で日本が3勝の歴史的快挙 / 常磐自動車道の全線開通","パリ同時多発テロ事件が発生 / 国際サッカー連盟（FIFA）で大規模な汚職事件","爆買い / 五郎丸ポーズ / アップルウォッチ"]
[null,null,null,null,null,null,null,null,null,null,null,"平成28年","2016年","申（さる）","熊本地震が発生 / オバマ米大統領が広島を初訪問 / イチローが日米通算安打数4257安打達成  ","「ポケモンGO」世界各国で一大ブーム / 上海ディズニーランド開園","ポケモンGO / ピコ太郎 / SMAP解散"]
[null,null,null,null,null,null,null,null,null,null,null,"平成29年","2017年","酉（とり）","任天堂ゲーム機「ニンテンドースイッチ」発売  / パンダ「シャンシャン」公開 / バイク「スーパーカブ」生産台数1億台突破","トランプ米大統領が就任 / 金正男氏、マレーシアの空港で殺害 / ロンドンテロ事件発生","将棋・藤井聡太四段 / ブルゾンちえみ / インスタ映え"]
[null,null,null,null,null,null,null,null,null,null,null,"平成30年","2018年","戌（いぬ）","西日本で記録的豪雨  / 貴乃花親方が日本相撲協会理事解任","史上初の米朝首脳会談が開催 / ファーウェイの孟晩舟副会長がカナダで逮捕","大坂なおみがテニス全米オープンで初優勝 /TikTok "]
[null,null,null,null,null,null,null,null,null,null,null,"平成31年 ／ 令和元年","2019年","亥（い）","イチローが現役引退 / ラグビーワールドカップ日本大会が開催 / 国際捕鯨委員会（IWC）から脱退 ","パリのノートルダム大聖堂で大規模な火災 / 台湾ので同性婚が合法化 / 中国で新型コロナウイルス発生","タピオカ / 消費税が10%に増税"]
[null,null,null,null,null,null,null,null,null,null,null,"令和2年","2020年","子（ね）","アイドルグループ「嵐」が活動休止 / としまえん閉園 / 日経平均株価25000円突破","アルゼンチンが9回目の債務不履行 / 香港で国家安全維持法が公布 / 東アジア地域包括的経済連携（RCEP）に15ヶ国が調印","鬼滅の刃 / GoToキャンペーン / 緊急事態宣言"]
[null,null,null,null,null,null,null,null,null,null,null,"令和3年","2021年","丑（うし）","原則無観客の東京五輪でメダル最多58個 / 大谷翔平メジャーMVP / 眞子さまご結婚","新型コロナ世界感染者2億人突破 / ミャンマー国軍がクーデター / 不動産大手「中国恒大」経営危機","千葉真一 / 田村正和 / 田中邦衛 /Ado曲「うっせぇわ」"]
[null,null,null,null,null,null,null,null,null,null,null,"令和4年","2022年","寅（とら）"]
[null,null,null,null,null,null,null,null,null,null,null,"令和5年","2023年","卯（う）"]
[null,null,null,null,null,null,null,null,null,null,null,"令和6年","2024年","辰（たつ）"]
[null,null,null,null,null,null,null,null,null,null,null,"令和7年","2025年","巳（み）"]
[null,null,null,null,null,null,null,null,null,null,null,"令和8年","2026年","午（うま）"]
[null,null,null,null,null,null,null,null,null,null,null,"令和9年","2027年","未（ひつじ）"]
[null,null,null,null,null,null,null,null,null,null,null,"令和10年","2028年","申（さる）"]
[null,null,null,null,null,null,null,null,null,null,null,"令和11年","2029年","酉（とり）"]
[null,null,null,null,null,null,null,null,null,null,null,"令和12年","2030年","戌（いぬ）"]
[null,null,null,null,null,null,null,null,null,null,null,"令和13年","2031年","亥（い）"]
[null,null,null,null,null,null,null,null,null,null,null,"令和14年","2032年","子（ね）"]
[null,null,null,null,null,null,null,null,null,null,null,"令和15年","2033年","丑（うし）"]
[null,null,null,null,null,null,null,null,null,null,null,"令和16年","2034年","寅（とら）"]
[null,null,null,null,null,null,null,null,null,null,null,"令和17年","2035年","卯（う）"]
[null,null,null,null,null,null,null,null,null,null,null,"令和18年","2036年","辰（たつ）"]
[null,null,null,null,null,null,null,null,null,null,null,"令和19年","2037年","巳（み）"]
[null,null,null,null,null,null,null,null,null,null,null,"令和20年","2038年","午（うま）"]
[null,null,null,null,null,null,null,null,null,null,null,"令和21年","2039年","未（ひつじ）"]
[null,null,null,null,null,null,null,null,null,null,null,"令和22年","2040年","申（さる）"]

{"sheet":"西暦・和暦対象表","index":1,"n_rows":140,"n_cols":11,"rows_kept":140,"cut":false,"hidden":true,"merged":[]}
["和暦","西暦"]
["明治35年","1902年",null,null,null,null,null,null,null,null,{"$f":"B2&\"　\"&A2","v":"1902年　明治35年"}]
["明治36年","1903年",null,null,null,null,null,null,null,null,{"$f":"B3&\"　\"&A3","v":"1903年　明治36年"}]
["明治37年","1904年",null,null,null,null,null,null,null,null,"1904年　明治37年"]
["明治38年","1905年",null,null,null,null,null,null,null,null,"1905年　明治38年"]
["明治39年","1906年",null,null,null,null,null,null,null,null,"1906年　明治39年"]
["明治40年","1907年",null,null,null,null,null,null,null,null,"1907年　明治40年"]
["明治41年","1908年",null,null,null,null,null,null,null,null,"1908年　明治41年"]
["明治42年","1909年",null,null,null,null,null,null,null,null,"1909年　明治42年"]
["明治43年","1910年",null,null,null,null,null,null,null,null,"1910年　明治43年"]
["明治44年","1911年",null,null,null,null,null,null,null,null,"1911年　明治44年"]
["明治45年 ／ 大正元年","1912年",null,null,null,null,null,null,null,null,"1912年　明治45年 ／ 大正元年"]
["大正2年","1913年",null,null,null,null,null,null,null,null,"1913年　大正2年"]
["大正3年","1914年",null,null,null,null,null,null,null,null,"1914年　大正3年"]
["大正4年","1915年",null,null,null,null,null,null,null,null,"1915年　大正4年"]
["大正5年","1916年",null,null,null,null,null,null,null,null,"1916年　大正5年"]
["大正6年","1917年",null,null,null,null,null,null,null,null,"1917年　大正6年"]
["大正7年","1918年",null,null,null,null,null,null,null,null,"1918年　大正7年"]
["大正8年","1919年",null,null,null,null,null,null,null,null,"1919年　大正8年"]
["大正9年","1920年",null,null,null,null,null,null,null,null,"1920年　大正9年"]
["大正10年","1921年",null,null,null,null,null,null,null,null,"1921年　大正10年"]
["大正11年","1922年",null,null,null,null,null,null,null,null,"1922年　大正11年"]
["大正12年","1923年",null,null,null,null,null,null,null,null,"1923年　大正12年"]
["大正13年","1924年",null,null,null,null,null,null,null,null,"1924年　大正13年"]
["大正14年","1925年",null,null,null,null,null,null,null,null,"1925年　大正14年"]
["大正15年 ／ 昭和元年","1926年",null,null,null,null,null,null,null,null,"1926年　大正15年 ／ 昭和元年"]
["昭和2年","1927年",null,null,null,null,null,null,null,null,"1927年　昭和2年"]
["昭和3年","1928年",null,null,null,null,null,null,null,null,"1928年　昭和3年"]
["昭和4年","1929年",null,null,null,null,null,null,null,null,"1929年　昭和4年"]
["昭和5年","1930年",null,null,null,null,null,null,null,null,"1930年　昭和5年"]
["昭和6年","1931年",null,null,null,null,null,null,null,null,"1931年　昭和6年"]
["昭和7年","1932年",null,null,null,null,null,null,null,null,"1932年　昭和7年"]
["昭和8年","1933年",null,null,null,null,null,null,null,null,"1933年　昭和8年"]
["昭和9年","1934年",null,null,null,null,null,null,null,null,"1934年　昭和9年"]
["昭和10年","1935年",null,null,null,null,null,null,null,null,"1935年　昭和10年"]
["昭和11年","1936年",null,null,null,null,null,null,null,null,"1936年　昭和11年"]
["昭和12年","1937年",null,null,null,null,null,null,null,null,"1937年　昭和12年"]
["昭和13年","1938年",null,null,null,null,null,null,null,null,"1938年　昭和13年"]
["昭和14年","1939年",null,null,null,null,null,null,null,null,"1939年　昭和14年"]
["昭和15年","1940年",null,null,null,null,null,null,null,null,"1940年　昭和15年"]
["昭和16年","1941年",null,null,null,null,null,null,null,null,"1941年　昭和16年"]
["昭和17年","1942年",null,null,null,null,null,null,null,null,"1942年　昭和17年"]
["昭和18年","1943年",null,null,null,null,null,null,null,null,"1943年　昭和18年"]
["昭和19年","1944年",null,null,null,null,null,null,null,null,"1944年　昭和19年"]
["昭和20年","1945年",null,null,null,null,null,null,null,null,"1945年　昭和20年"]
["昭和21年","1946年",null,null,null,null,null,null,null,null,"1946年　昭和21年"]
["昭和22年","1947年",null,null,null,null,null,null,null,null,"1947年　昭和22年"]
["昭和23年","1948年",null,null,null,null,null,null,null,null,"1948年　昭和23年"]
["昭和24年","1949年",null,null,null,null,null,null,null,null,"1949年　昭和24年"]
["昭和25年","1950年",null,null,null,null,null,null,null,null,"1950年　昭和25年"]
["昭和26年","1951年",null,null,null,null,null,null,null,null,"1951年　昭和26年"]
["昭和27年","1952年",null,null,null,null,null,null,null,null,"1952年　昭和27年"]
["昭和28年","1953年",null,null,null,null,null,null,null,null,"1953年　昭和28年"]
["昭和29年","1954年",null,null,null,null,null,null,null,null,"1954年　昭和29年"]
["昭和30年","1955年",null,null,null,null,null,null,null,null,"1955年　昭和30年"]
["昭和31年","1956年",null,null,null,null,null,null,null,null,"1956年　昭和31年"]
["昭和32年","1957年",null,null,null,null,null,null,null,null,"1957年　昭和32年"]
["昭和33年","1958年",null,null,null,null,null,null,null,null,"1958年　昭和33年"]
["昭和34年","1959年",null,null,null,null,null,null,null,null,"1959年　昭和34年"]
["昭和35年","1960年",null,null,null,null,null,null,null,null,"1960年　昭和35年"]
["昭和36年","1961年",null,null,null,null,null,null,null,null,"1961年　昭和36年"]
["昭和37年","1962年",null,null,null,null,null,null,null,null,"1962年　昭和37年"]
["昭和38年","1963年",null,null,null,null,null,null,null,null,"1963年　昭和38年"]
["昭和39年","1964年",null,null,null,null,null,null,null,null,"1964年　昭和39年"]
["昭和40年","1965年",null,null,null,null,null,null,null,null,"1965年　昭和40年"]
["昭和41年","1966年",null,null,null,null,null,null,null,null,"1966年　昭和41年"]
["昭和42年","1967年",null,null,null,null,null,null,null,null,{"$f":"B67&\"　\"&A67","v":"1967年　昭和42年"}]
["昭和43年","1968年",null,null,null,null,null,null,null,null,"1968年　昭和43年"]
["昭和44年","1969年",null,null,null,null,null,null,null,null,"1969年　昭和44年"]
["昭和45年","1970年",null,null,null,null,null,null,null,null,"1970年　昭和45年"]
["昭和46年","1971年",null,null,null,null,null,null,null,null,"1971年　昭和46年"]
["昭和47年","1972年",null,null,null,null,null,null,null,null,"1972年　昭和47年"]
["昭和48年","1973年",null,null,null,null,null,null,null,null,"1973年　昭和48年"]
["昭和49年","1974年",null,null,null,null,null,null,null,null,"1974年　昭和49年"]
["昭和50年","1975年",null,null,null,null,null,null,null,null,"1975年　昭和50年"]
["昭和51年","1976年",null,null,null,null,null,null,null,null,"1976年　昭和51年"]
["昭和52年","1977年",null,null,null,null,null,null,null,null,"1977年　昭和52年"]
["昭和53年","1978年",null,null,null,null,null,null,null,null,"1978年　昭和53年"]
["昭和54年","1979年",null,null,null,null,null,null,null,null,"1979年　昭和54年"]
["昭和55年","1980年",null,null,null,null,null,null,null,null,"1980年　昭和55年"]
["昭和56年","1981年",null,null,null,null,null,null,null,null,"1981年　昭和56年"]
["昭和57年","1982年",null,null,null,null,null,null,null,null,"1982年　昭和57年"]
["昭和58年","1983年",null,null,null,null,null,null,null,null,"1983年　昭和58年"]
["昭和59年","1984年",null,null,null,null,null,null,null,null,"1984年　昭和59年"]
["昭和60年","1985年",null,null,null,null,null,null,null,null,"1985年　昭和60年"]
["昭和61年","1986年",null,null,null,null,null,null,null,null,"1986年　昭和61年"]
["昭和62年","1987年",null,null,null,null,null,null,null,null,"1987年　昭和62年"]
["昭和63年","1988年",null,null,null,null,null,null,null,null,"1988年　昭和63年"]
["昭和64年 ／ 平成元年","1989年",null,null,null,null,null,null,null,null,"1989年　昭和64年 ／ 平成元年"]
["平成2年","1990年",null,null,null,null,null,null,null,null,"1990年　平成2年"]
["平成3年","1991年",null,null,null,null,null,null,null,null,"1991年　平成3年"]
["平成4年","1992年",null,null,null,null,null,null,null,null,"1992年　平成4年"]
["平成5年","1993年",null,null,null,null,null,null,null,null,"1993年　平成5年"]
["平成6年","1994年",null,null,null,null,null,null,null,null,"1994年　平成6年"]
["平成7年","1995年",null,null,null,null,null,null,null,null,"1995年　平成7年"]
["平成8年","1996年",null,null,null,null,null,null,null,null,"1996年　平成8年"]
["平成9年","1997年",null,null,null,null,null,null,null,null,"1997年　平成9年"]
["平成10年","1998年",null,null,null,null,null,null,null,null,"1998年　平成10年"]
["平成11年","1999年",null,null,null,null,null,null,null,null,"1999年　平成11年"]
["平成12年","2000年",null,null,null,null,null,null,null,null,"2000年　平成12年"]
["平成13年","2001年",null,null,null,null,null,null,null,null,"2001年　平成13年"]
["平成14年","2002年",null,null,null,null,null,null,null,null,"2002年　平成14年"]
["平成15年","2003年",null,null,null,null,null,null,null,null,"2003年　平成15年"]
["平成16年","2004年",null,null,null,null,null,null,null,null,"2004年　平成16年"]
["平成17年","2005年",null,null,null,null,null,null,null,null,"2005年　平成17年"]
["平成18年","2006年",null,null,null,null,null,null,null,null,"2006年　平成18年"]
["平成19年","2007年",null,null,null,null,null,null,null,null,"2007年　平成19年"]
["平成20年","2008年",null,null,null,null,null,null,null,null,"2008年　平成20年"]
["平成21年","2009年",null,null,null,null,null,null,null,null,"2009年　平成21年"]
["平成22年","2010年",null,null,null,null,null,null,null,null,"2010年　平成22年"]
["平成23年","2011年",null,null,null,null,null,null,null,null,"2011年　平成23年"]
["平成24年","2012年",null,null,null,null,null,null,null,null,"2012年　平成24年"]
["平成25年","2013年",null,null,null,null,null,null,null,null,"2013年　平成25年"]
["平成26年","2014年",null,null,null,null,null,null,null,null,"2014年　平成26年"]
["平成27年","2015年",null,null,null,null,null,null,null,null,"2015年　平成27年"]
["平成28年","2016年",null,null,null,null,null,null,null,null,"2016年　平成28年"]
["平成29年","2017年",null,null,null,null,null,null,null,null,"2017年　平成29年"]
["平成30年","2018年",null,null,null,null,null,null,null,null,"2018年　平成30年"]
["平成31年 ／ 令和元年","2019年",null,null,null,null,null,null,null,null,"2019年　平成31年 ／ 令和元年"]
["令和2年","2020年",null,null,null,null,null,null,null,null,"2020年　令和2年"]
["令和3年","2021年",null,null,null,null,null,null,null,null,"2021年　令和3年"]
["令和4年","2022年",null,null,null,null,null,null,null,null,"2022年　令和4年"]
["令和5年","2023年",null,null,null,null,null,null,null,null,"2023年　令和5年"]
["令和6年","2024年",null,null,null,null,null,null,null,null,"2024年　令和6年"]
["令和7年","2025年",null,null,null,null,null,null,null,null,"2025年　令和7年"]
["令和8年","2026年",null,null,null,null,null,null,null,null,"2026年　令和8年"]
["令和9年","2027年",null,null,null,null,null,null,null,null,"2027年　令和9年"]
["令和10年","2028年",null,null,null,null,null,null,null,null,"2028年　令和10年"]
["令和11年","2029年",null,null,null,null,null,null,null,null,"2029年　令和11年"]
["令和12年","2030年",null,null,null,null,null,null,null,null,"2030年　令和12年"]
["令和13年","2031年",null,null,null,null,null,null,null,null,{"$f":"B131&\"　\"&A131","v":"2031年　令和13年"}]
["令和14年","2032年",null,null,null,null,null,null,null,null,"2032年　令和14年"]
["令和15年","2033年",null,null,null,null,null,null,null,null,"2033年　令和15年"]
["令和16年","2034年",null,null,null,null,null,null,null,null,"2034年　令和16年"]
["令和17年","2035年",null,null,null,null,null,null,null,null,"2035年　令和17年"]
["令和18年","2036年",null,null,null,null,null,null,null,null,"2036年　令和18年"]
["令和19年","2037年",null,null,null,null,null,null,null,null,"2037年　令和19年"]
["令和20年","2038年",null,null,null,null,null,null,null,null,"2038年　令和20年"]
["令和21年","2039年",null,null,null,null,null,null,null,null,"2039年　令和21年"]
["令和22年","2040年",null,null,null,null,null,null,null,null,"2040年　令和22年"]